bitfinex/quotes_ETHUSD_20240618
["timestamp","ask_amount","ask_price","bid_price","bid_amount"]
[1718706097699,1.21199719,3428.4,3427.3,0.55]
[1718706097879,2.12050241,3428.3,3427.3,0.55]
[1718706098394,1.21199719,3428.4,3427.3,0.55]
[1718706099408,1.21199719,3428.5,3427.3,0.55]
[1718706099697,2.12049193,3428.4,3427.3,0.55]
[1718706099871,1.21199719,3428.5,3427.3,0.55]
[1718706100076,2.12049157,3428.4,3427.3,0.55]
[1718706100266,3.0,3428.3,3427.3,0.55]
[1718706100904,4.21199719,3428.3,3427.3,0.55]
[1718706101494,3.0,3428.2,3427.0,0.55]
[1718706101669,3.0,3428.2,3426.9,0.55]
[1718706102369,5.3663,3427.8,3426.9,0.55]
[1718706102588,5.3663,3427.8,3426.6,0.55]
[1718706102769,5.3663,3427.8,3426.4,2.2626]
[1718706103978,5.3663,3427.8,3426.4,2.68721836]
[1718706104234,5.3663,3427.8,3426.5,0.97461836]
[1718706105620,3.0,3427.8,3426.5,1.03298165]
[1718706105799,5.4647,3428.2,3426.7,2.091]
[1718706105998,5.4647,3428.2,3426.8,3.77327364]
[1718706107275,3.0,3428.3,3426.8,3.77327364]
[1718706107503,3.0,3428.3,3426.8,3.71491653]
[1718706107878,3.0,3428.3,3426.9,0.05835712]
[1718706108083,3.0,3428.3,3427.0,1.56104573]
[1718706109164,2.4188,3428.6,3427.2,2.4919]
[1718706109365,2.4188,3428.6,3427.3,1.03296641]
[1718706109366,3.0,3428.6,3427.3,1.03296641]
[1718706109569,3.0,3428.6,3427.3,1.64984774]
[1718706110720,3.0,3428.7,3427.4,0.05834651]
[1718706111015,3.0,3428.7,3427.5,0.55]
[1718706111571,4.89337634,3429.0,3427.7,2.3452]
[1718706111777,3.0,3429.0,3427.8,0.55]
[1718706112683,3.0,3429.0,3427.8,0.60834152]
[1718706112891,3.0,3429.0,3427.8,1.09691599]
[1718706113423,4.3885368,3429.0,3427.8,1.09691599]
[1718706113901,3.0,3429.0,3427.8,1.09691599]
[1718706114326,4.3885368,3429.0,3427.8,1.09691599]
[1718706116713,3.0,3429.0,3427.8,1.09691599]
[1718706116913,3.0,3429.0,3427.9,0.3442116]
[1718706117102,3.0,3429.0,3428.0,0.55]
[1718706117303,4.3885368,3429.1,3428.0,0.55]
[1718706117504,1.3885368,3429.0,3428.0,0.55]
[1718706117711,1.3885368,3429.3,3428.1,2.2868]
[1718706117915,1.3885368,3429.3,3428.2,1.119663]
[1718706118088,1.3885368,3429.4,3428.2,1.119663]
[1718706118294,1.3885368,3429.3,3428.3,0.05832843]
[1718706118491,1.3885368,3429.4,3428.5,2.4754]
[1718706118815,1.3885368,3429.6,3428.7,2.4754]
[1718706118988,1.3885368,3429.9,3428.8,0.95915441]
[1718706119323,1.3885368,3430.2,3428.8,0.95915441]
[1718706119510,1.3885368,3430.2,3429.0,2.4754]
[1718706119717,1.3885368,3430.1,3429.1,0.60831783]
[1718706120307,3.0,3430.3,3429.1,0.55]
[1718706120308,1.3885368,3430.2,3429.1,0.55]
[1718706120506,1.3885368,3430.2,3429.2,0.36204173]
[1718706120715,1.3885368,3430.2,3429.3,0.55]
[1718706121317,4.38924231,3430.3,3429.3,0.55]
[1718706121619,3.0,3430.3,3429.3,0.55]
[1718706122425,1.38924231,3430.6,3429.4,2.50281256]
[1718706122592,1.38924231,3430.6,3429.5,0.55]
[1718706122795,1.38924231,3430.5,3429.5,0.55]
[1718706123003,1.38924231,3430.6,3429.5,0.55]
[1718706123204,7.38924231,3430.7,3429.5,0.55]
[1718706123757,3.50847821,3430.6,3429.5,0.55]
[1718706123901,1.38924231,3430.3,3429.5,0.55]
[1718706124294,1.38924231,3430.4,3429.5,0.55]
[1718706124694,1.38924231,3430.3,3429.5,0.55]
[1718706124900,3.0,3430.3,3429.5,0.55]
[1718706125199,3.0,3430.3,3428.8,2.2686]
[1718706125405,4.38924231,3430.2,3428.8,2.2686]
[1718706125940,3.0,3429.9,3428.8,2.2686]
[1718706126312,3.0,3429.9,3427.9,9.521]
[1718706126313,6.073,3429.9,3428.1,2.3836]
[1718706126515,1.38924231,3429.7,3428.1,2.3836]
[1718706126718,2.6012395,3429.7,3428.1,2.3836]
[1718706126897,5.6012395,3429.6,3428.1,2.3836]
[1718706127105,1.21199719,3429.7,3428.2,0.29668983]
[1718706127399,3.0,3429.8,3428.4,2.3766]
[1718706127830,3.0,3429.9,3428.4,2.3766]
[1718706128035,1.21199719,3430.2,3428.6,2.4545]
[1718706128242,3.0,3430.2,3428.8,2.4545]
[1718706128411,3.0,3430.2,3428.9,0.55]
[1718706128952,3.0,3430.3,3429.0,0.05831787]
[1718706129132,3.0,3430.3,3429.1,2.8474]
[1718706133340,3.0,3430.3,3429.1,3.34124]
[1718706133545,3.10583445,3430.6,3429.1,3.34124]
[1718706133546,0.50459495,3430.6,3429.2,0.05831716]
[1718706133750,0.50459495,3430.6,3429.1,3.34124]
[1718706133751,2.6012395,3430.5,3429.3,0.55]
[1718706134040,4.50702911,3430.6,3429.1,3.34124]
[1718706134041,3.10583445,3430.6,3429.1,3.34124]
[1718706134245,3.0,3430.4,3429.1,3.34124]
[1718706134401,3.0,3430.5,3429.1,2.8474]
[1718706134609,3.0,3430.5,3429.1,2.2974]
[1718706134610,3.0,3430.3,3429.1,2.2974]
[1718706134860,1.38924231,3430.2,3429.1,2.2974]
[1718706135042,3.0,3429.9,3428.4,2.4286]
[1718706135363,1.38924231,3429.7,3428.4,2.4286]
[1718706135706,1.38924231,3429.6,3428.4,2.4286]
[1718706135905,4.38924231,3429.6,3428.4,2.4286]
[1718706136149,3.0,3429.6,3428.4,2.4286]
[1718706136656,4.38924231,3429.7,3428.5,0.55]
[1718706136813,1.38924231,3429.7,3428.6,2.4558]
[1718706137005,3.0,3429.9,3428.7,0.9355696]
[1718706137212,3.0,3429.9,3428.7,0.8772496]
[1718706138043,3.0,3430.3,3428.8,2.4558]
[1718706138242,3.0,3430.3,3429.0,2.2591]
[1718706138635,4.38924231,3430.4,3429.1,0.55]
[1718706138836,1.38924231,3430.4,3429.1,0.55]
[1718706139709,1.38948486,3430.4,3429.1,0.55]
[1718706140022,1.38948486,3430.3,3429.1,0.83091]
[1718706140341,1.38948486,3430.2,3429.1,0.83091]
[1718706140934,1.38948486,3430.3,3429.1,0.83091]
[1718706141343,1.38948486,3430.2,3429.1,0.83091]
[1718706142062,1.38948486,3430.2,3429.2,0.309001]
[1718706142253,1.38948486,3430.3,3429.3,0.55]
[1718706143978,1.38948486,3430.4,3429.4,2.2915]
[1718706144117,1.38948486,3430.5,3429.5,0.8650501]
[1718706144314,1.38948486,3430.4,3429.5,0.8650501]
[1718706145020,3.0,3430.6,3429.5,0.92336261]
[1718706145021,1.38948486,3430.5,3429.5,0.92336261]
[1718706145322,1.38948486,3430.4,3429.6,0.31565501]
[1718706145541,1.38948486,3430.4,3429.7,0.55]
[1718706147128,1.38948486,3430.3,3429.7,0.55]
[1718706148453,1.38948486,3430.5,3429.8,2.4607]
[1718706148637,1.38948486,3430.5,3429.9,0.55]
[1718706150328,1.38948486,3430.6,3429.9,0.60830396]
[1718706151229,1.38948486,3430.6,3430.0,0.33847195]
[1718706151429,1.38948486,3430.6,3430.1,0.55]
[1718706151628,1.38948486,3430.7,3430.1,0.55]
[1718706152073,1.38948486,3430.8,3430.0,0.55]
[1718706152361,3.0,3431.2,3430.2,2.4813]
[1718706152362,1.38948486,3430.9,3430.2,2.4813]
[1718706152658,1.39037184,3430.9,3430.3,0.55]
[1718706153026,1.39037184,3430.8,3430.3,0.55]
[1718706153229,1.39037184,3430.6,3430.3,0.55]
[1718706153432,1.39037184,3430.6,3429.8,2.3055]
[1718706153433,1.39037184,3430.5,3429.8,2.3055]
[1718706153681,1.39037184,3430.5,3429.9,0.55]
[1718706155780,1.51018974,3431.0,3429.9,0.55]
[1718706155781,1.39037184,3430.6,3429.9,0.55]
[1718706156241,1.39037184,3430.5,3429.9,0.55]
[1718706159689,1.39037184,3430.5,3429.9,0.83555]
[1718706159999,1.39037184,3430.4,3429.9,0.55]
[1718706160950,3.50953872,3430.3,3429.9,0.55]
[1718706161150,1.39037184,3430.3,3429.9,0.55]
[1718706161392,2.60236903,3430.3,3429.9,0.55]
[1718706161657,7.26112769,3430.8,3430.0,2.4373]
[1718706161658,1.39037184,3430.8,3430.0,2.4373]
[1718706161875,2.1187676,3430.7,3430.1,0.55]
[1718706162080,5.62801185,3430.7,3430.1,0.55]
[1718706162267,5.44969043,3430.6,3430.1,0.55]
[1718706162450,2.1187676,3430.5,3430.1,0.55]
[1718706162688,1.21199719,3430.7,3430.1,0.55]
[1718706162912,2.11883582,3430.6,3430.1,0.55]
[1718706163082,2.60236903,3430.8,3430.1,0.55]
[1718706163283,2.11883581,3430.7,3430.1,0.55]
[1718706163592,3.330833,3430.7,3430.1,0.55]
[1718706163792,2.11883581,3430.6,3430.1,0.55]
[1718706164116,1.21199719,3430.7,3430.1,0.55]
[1718706164321,2.11876452,3430.6,3430.1,0.55]
[1718706165280,1.21199719,3430.7,3430.1,0.84873]
[1718706165615,2.31670062,3431.2,3430.2,2.3257]
[1718706165616,1.21199719,3431.0,3430.2,2.3257]
[1718706165775,2.11863636,3430.9,3430.3,0.55]
[1718706165975,2.11863636,3430.9,3430.4,2.38399499]
[1718706166285,2.90253722,3431.2,3430.5,0.55]
[1718706166286,1.21199719,3431.1,3430.5,0.55]
[1718706166502,1.21199719,3431.1,3430.5,0.60829379]
[1718706166691,1.21199719,3431.1,3430.5,0.90169317]
[1718706167314,1.21199719,3431.2,3430.5,0.90169317]
[1718706168287,3.10536465,3431.3,3430.5,0.90169317]
[1718706168609,3.33045793,3431.2,3430.6,0.32273932]
[1718706168810,1.21199719,3431.2,3430.7,0.55]
[1718706169685,1.71641866,3431.3,3430.7,0.55]
[1718706169879,2.60094318,3431.3,3430.7,0.55]
[1718706170085,1.21199719,3431.2,3430.7,0.55]
[1718706170492,2.60094318,3431.2,3430.5,0.55]
[1718706170736,1.21199719,3431.1,3430.5,0.55]
[1718706170892,1.21199719,3431.0,3429.8,2.4531]
[1718706171089,3.33071734,3430.9,3429.8,2.4531]
[1718706171296,2.60094318,3430.8,3429.8,2.4531]
[1718706171635,2.60094318,3430.8,3429.9,0.28206605]
[1718706172190,2.60094318,3430.8,3430.0,0.55]
[1718706172397,2.118835,3430.7,3430.0,0.55]
[1718706172839,2.60094318,3430.8,3430.0,0.55]
[1718706172995,2.60094318,3430.8,3430.0,0.60830243]
[1718706173349,2.60094318,3430.9,3430.1,0.33434685]
[1718706173505,2.60094318,3430.9,3430.2,0.55]
[1718706174094,1.21199719,3430.8,3430.2,0.55]
[1718706174296,2.60094318,3430.9,3430.3,2.4861]
[1718706174496,2.11871057,3430.8,3430.4,0.88704469]
[1718706174694,1.21199719,3430.9,3430.4,0.88704469]
[1718706174896,2.60094318,3431.0,3430.4,0.88704469]
[1718706175102,2.11869747,3430.9,3430.5,0.33731447]
[1718706175337,2.11869747,3430.9,3430.6,0.55]
[1718706175652,2.60094318,3431.1,3430.6,0.55]
[1718706175837,2.11859506,3431.0,3430.6,0.55]
[1718706176156,2.60094318,3431.1,3430.6,0.55]
[1718706176302,2.11862228,3431.0,3430.6,0.55]
[1718706177328,2.60094318,3431.1,3430.6,0.55]
[1718706177938,4.71955215,3431.0,3430.6,0.55]
[1718706178139,2.60094318,3430.9,3430.4,0.55]
[1718706178345,1.38894599,3430.7,3429.9,2.3383]
[1718706178541,1.38894599,3430.7,3429.9,3.31860661]
[1718706178542,2.60094318,3430.7,3429.9,3.31860661]
[1718706178849,4.71982474,3430.6,3429.9,3.31860661]
[1718706179011,2.60094318,3430.6,3429.9,3.31860661]
[1718706179645,2.60094318,3430.6,3429.9,2.3383]
[1718706179646,4.71985942,3430.5,3429.9,2.3383]
[1718706179944,4.71993578,3430.4,3429.9,2.3383]
[1718706180154,2.60094318,3430.4,3429.9,2.3383]
[1718706181220,1.21199719,3430.3,3430.0,0.55]
[1718706181426,1.21199719,3430.2,3429.5,2.4535]
[1718706181830,2.60094318,3430.2,3429.5,2.4535]
[1718706182220,3.33105113,3430.1,3429.5,2.4535]
[1718706182429,1.21199719,3430.1,3429.5,2.4535]
[1718706182710,1.21199719,3430.1,3429.6,0.24535]
[1718706182951,1.21199719,3430.1,3429.7,0.55]
[1718706185414,1.21199719,3430.1,3429.7,0.60831215]
[1718706185614,1.21199719,3430.2,3429.7,0.55]
[1718706185815,1.21199719,3430.2,3429.7,0.874885]
[1718706187131,2.11901537,3430.1,3429.7,0.55]
[1718706187451,1.21199719,3430.0,3429.6,0.55]
[1718706188818,1.21199719,3429.9,3429.6,0.55]
[1718706189095,1.21199719,3429.8,3429.6,0.55]
[1718706189237,2.11921506,3429.7,3429.6,0.55]
[1718706189438,3.33121225,3429.7,3429.6,0.55]
[1718706190360,2.11921506,3429.7,3429.6,0.55]
[1718706192464,1.21199719,3429.9,3429.6,0.55]
[1718706192775,2.11926941,3429.8,3429.6,0.55]
[1718706193002,3.3312666,3429.8,3429.6,0.55]
[1718706193198,1.21199719,3429.8,3429.6,0.55]
[1718706195583,1.21199719,3430.0,3429.6,0.55]
[1718706195783,2.11916301,3429.9,3429.6,0.55]
[1718706195983,1.21199719,3430.1,3429.6,0.55]
[1718706196177,3.33114477,3430.0,3429.6,0.55]
[1718706196383,2.11914758,3429.9,3429.6,0.55]
[1718706197657,3.33114477,3429.9,3429.6,0.55]
[1718706197858,1.21199719,3429.9,3429.6,0.55]
[1718706198258,1.21199719,3429.9,3428.3,5.00281751]
[1718706198259,2.11926875,3429.8,3428.8,2.3745]
[1718706198590,1.21199719,3429.3,3428.4,2.3745]
[1718706198755,5.45102928,3429.2,3428.4,2.3745]
[1718706198961,3.33126594,3429.1,3428.4,2.3745]
[1718706199266,1.21199719,3429.1,3428.4,2.3745]
[1718706199468,1.21199719,3429.1,3428.4,2.61700707]
[1718706200696,1.21199719,3429.1,3428.4,2.3745]
[1718706201273,1.21199719,3429.2,3428.5,0.55]
[1718706201503,1.21199719,3429.1,3428.5,0.55]
[1718706202177,1.21199719,3429.2,3428.5,0.55]
[1718706203763,1.21199719,3429.3,3428.5,0.55]
[1718706205265,1.21199719,3429.4,3428.5,0.55]
[1718706206309,1.21199719,3429.4,3428.5,0.84245]
[1718706206470,1.21199719,3429.4,3428.5,0.55]
[1718706207166,5.59881776,3429.5,3428.5,0.55]
[1718706207569,3.0,3429.5,3428.5,0.55]
[1718706208680,3.0,3429.5,3428.6,2.4808]
[1718706208875,3.0,3429.5,3428.7,0.55]
[1718706209194,3.0,3429.5,3428.8,0.35808]
[1718706209401,3.0,3429.5,3428.9,0.55]
[1718706210034,3.0,3429.8,3429.0,0.0583193]
[1718706210314,3.0,3429.9,3429.1,0.55]
[1718706210678,3.0,3429.9,3429.2,2.4776]
[1718706210874,3.0,3429.9,3429.3,0.55]
[1718706212180,4.38686011,3429.9,3429.3,0.55]
[1718706212611,3.0,3429.9,3429.3,0.55]
[1718706214517,5.59880616,3429.9,3429.3,0.55]
[1718706214684,4.38680897,3429.9,3429.3,0.55]
[1718706215086,5.59880616,3429.9,3429.3,0.55]
[1718706216218,2.59880616,3429.8,3429.3,0.55]
[1718706216381,1.38680897,3429.8,3429.3,0.55]
[1718706216887,5.59880616,3429.9,3429.3,0.55]
[1718706217122,3.50631358,3429.8,3429.3,0.55]
[1718706217321,2.59880616,3429.8,3429.3,0.55]
[1718706218600,1.38680897,3429.8,3429.3,0.55]
[1718706219010,1.21199719,3429.8,3429.3,0.55]
[1718706219318,5.59880616,3429.9,3429.3,0.55]
[1718706221432,4.71828358,3429.8,3429.3,0.55]
[1718706221624,2.59880616,3429.8,3429.3,0.55]
[1718706222307,1.21199719,3429.7,3429.3,0.55]
[1718706222505,2.59880616,3429.8,3429.3,0.55]
[1718706222831,1.21199719,3429.8,3429.3,0.55]
[1718706223182,1.21199719,3429.7,3429.3,0.55]
[1718706225087,2.1194466,3429.6,3429.3,0.55]
[1718706225488,3.33144379,3429.6,3429.3,0.55]
[1718706225711,1.21199719,3429.6,3429.3,0.55]
[1718706228213,2.11946517,3429.5,3429.3,0.55]
[1718706230198,3.33146236,3429.5,3429.3,0.55]
[1718706230399,1.21199719,3429.6,3429.3,0.55]
[1718706230605,2.11942997,3429.5,3429.3,0.55]
[1718706231114,3.33142716,3429.5,3429.3,0.55]
[1718706231318,2.11951301,3429.4,3429.3,0.55]
[1718706232002,1.21199719,3429.5,3429.3,0.55]
[1718706232204,2.11947561,3429.4,3429.3,0.55]
[1718706232933,3.3314728,3429.4,3429.3,0.55]
[1718706233929,2.11947561,3429.4,3429.3,0.55]
[1718706234704,3.3314728,3429.4,3429.3,0.55]
[1718706235112,1.21199719,3429.5,3429.3,0.55]
[1718706235345,2.11943928,3429.4,3429.3,0.55]
[1718706235800,2.11943928,3429.4,3429.3,0.93966]
[1718706236001,1.21199719,3429.6,3429.3,0.93966]
[1718706236203,2.11931771,3429.5,3429.3,0.55]
[1718706236409,1.21199719,3429.7,3429.3,0.55]
[1718706236649,2.11933461,3429.6,3429.3,0.55]
[1718706237123,1.21199719,3429.7,3429.3,0.55]
[1718706237435,2.11931832,3429.6,3429.3,0.60831363]
[1718706238569,2.11931832,3429.6,3429.4,0.869]
[1718706238734,2.11931832,3429.6,3429.5,0.55]
[1718706239240,3.33131551,3429.6,3429.5,0.55]
[1718706239438,3.33131551,3429.6,3429.3,0.55]
[1718706239640,2.11931832,3429.5,3429.3,0.55]
[1718706239840,3.33131551,3429.5,3429.3,0.55]
[1718706240167,1.38675751,3429.6,3429.3,0.55]
[1718706240168,2.5987547,3429.6,3429.3,0.55]
[1718706240351,3.33139653,3429.5,3429.3,0.55]
[1718706240543,2.11941218,3429.4,3429.3,0.55]
[1718706240742,2.11941218,3429.4,3429.3,0.93966]
[1718706241862,2.11941066,3429.4,3429.3,0.93966]
[1718706244941,2.11941066,3429.4,3429.3,0.55]
[1718706245142,3.50653224,3429.4,3428.9,2.2801]
[1718706245352,3.50653224,3429.4,3428.9,3.1491]
[1718706245353,3.33067718,3429.3,3428.9,3.1491]
[1718706245557,3.33067718,3429.3,3428.1,3.0]
[1718706245558,1.21126652,3429.1,3428.6,2.323]
[1718706245880,1.21126652,3428.9,3428.4,0.869]
[1718706246084,3.33067718,3428.8,3428.4,0.869]
[1718706246378,1.21126652,3428.8,3428.4,0.869]
[1718706247855,1.21126652,3428.8,3428.5,0.55]
[1718706248989,1.21126652,3428.8,3428.6,0.869]
[1718706249222,1.21126652,3428.9,3428.7,0.55]
[1718706249357,3.33104638,3428.8,3428.7,0.55]
[1718706249685,2.11977986,3428.8,3428.7,0.55]
[1718706250193,3.33104638,3428.8,3428.7,0.55]
[1718706256100,2.11977986,3428.8,3428.7,0.55]
[1718706256500,3.33104638,3428.8,3428.7,0.55]
[1718706256885,3.33104638,3428.8,3428.5,0.55]
[1718706257086,2.11977986,3428.7,3428.5,0.55]
[1718706258104,1.21126652,3428.8,3428.5,0.55]
[1718706262705,1.21126652,3428.6,3428.3,0.55]
[1718706262901,1.21126652,3428.6,3427.5,0.0505764]
[1718706262902,3.33109387,3428.5,3428.0,0.869]
[1718706263103,2.11982735,3428.4,3428.0,0.869]
[1718706263912,3.33109387,3428.4,3428.0,0.869]
[1718706264115,1.21126652,3428.4,3428.1,0.55]
[1718706264267,1.21126652,3428.4,3427.9,0.55]
[1718706264268,3.60366652,3428.4,3427.9,0.55]
[1718706264471,3.60366652,3428.4,3427.4,0.45726984]
[1718706264472,1.21126652,3428.1,3427.4,0.45726984]
[1718706264669,3.33162038,3428.0,3427.4,0.45726984]
[1718706264894,3.33162038,3427.9,3427.3,3.2777]
[1718706265093,3.33162038,3427.8,3427.3,3.2777]
[1718706265412,1.21126652,3427.9,3427.3,3.2777]
[1718706265702,2.12054742,3427.8,3426.9,2.4171]
[1718706265908,1.21126652,3427.7,3427.2,0.869]
[1718706266273,1.21126652,3427.8,3427.2,0.869]
[1718706267010,1.21126652,3427.8,3427.3,0.55]
[1718706267312,2.08026652,3427.9,3426.8,0.88202723]
[1718706267499,2.08026652,3427.5,3426.8,0.45740887]
[1718706267697,0.869,3427.3,3426.4,0.869]
[1718706268019,3.33234974,3427.2,3426.4,0.32322]
[1718706268192,2.38316066,3427.3,3426.4,0.32322]
[1718706268193,3.33234974,3427.1,3426.4,0.32322]
[1718706268384,2.08026652,3427.3,3426.4,0.32322]
[1718706268785,2.12115501,3427.2,3426.4,0.32322]
[1718706269125,3.33242153,3427.2,3426.4,0.32322]
[1718706269320,0.869,3427.3,3426.4,0.32322]
[1718706269936,2.08026652,3427.3,3426.4,0.32322]
[1718706270097,2.08026652,3427.3,3426.5,0.55]
[1718706270285,0.869,3427.3,3426.5,0.55]
[1718706270485,0.869,3427.3,3426.4,0.55]
[1718706271829,0.869,3427.1,3426.4,0.55]
[1718706272033,0.869,3427.1,3426.3,0.55]
[1718706273908,3.1606,3427.1,3426.2,1.419]
[1718706274325,3.1606,3427.1,3426.2,0.55]
[1718706274530,3.1606,3427.1,3426.2,1.419]
[1718706277435,3.1606,3427.1,3426.2,0.55]
[1718706277738,0.869,3426.9,3426.2,0.55]
[1718706278731,0.869,3426.9,3425.9,0.55]
[1718706278933,3.0,3427.0,3425.9,0.55]
[1718706278934,0.869,3426.7,3425.9,0.55]
[1718706279309,0.869,3426.7,3425.9,0.93044]
[1718706281824,0.869,3426.7,3425.9,0.55]
[1718706282214,0.869,3426.7,3425.8,0.55]
[1718706283425,3.869,3427.0,3426.1,0.869]
[1718706283638,3.869,3427.0,3426.2,0.55]
[1718706284343,3.869,3427.0,3423.4,5.29753476]
[1718706284344,0.869,3426.3,3425.2,0.869]
[1718706284903,0.869,3426.1,3425.1,2.85953221]
[1718706285105,0.869,3426.1,3425.1,4.01448543]
[1718706285335,3.0,3426.4,3425.3,0.869]
[1718706285538,0.869,3426.3,3425.3,0.869]
[1718706285836,0.869,3426.3,3425.3,1.27628735]
[1718706286042,0.869,3426.3,3425.3,0.40728735]
[1718706286245,0.869,3426.3,3425.4,0.55]
[1718706286536,3.0,3426.4,3425.4,0.55]
[1718706286537,0.869,3426.1,3425.4,0.55]
[1718706286705,0.869,3426.1,3425.3,0.55]
[1718706287310,0.869,3426.1,3425.2,0.55]
[1718706287520,0.869,3426.1,3425.2,0.83595322]
[1718706288845,0.869,3426.1,3425.2,0.89433687]
[1718706289955,0.869,3426.1,3425.2,1.76333687]
[1718706290938,0.869,3426.1,3425.2,0.89433687]
[1718706291261,0.869,3426.1,3425.2,1.76333687]
[1718706291433,0.869,3426.1,3425.3,0.32963369]
[1718706291752,0.869,3426.1,3425.4,0.55]
[1718706294229,2.25576837,3426.1,3425.4,0.55]
[1718706294616,0.869,3426.1,3425.4,0.55]
[1718706295143,1.38676837,3426.1,3425.4,0.55]
[1718706297458,1.38676837,3426.0,3425.4,0.55]
[1718706297656,1.38676837,3426.1,3425.4,0.55]
[1718706297953,1.38676837,3426.0,3425.4,0.55]
[1718706298154,1.38676837,3426.1,3425.4,0.55]
[1718706298346,1.38676837,3426.0,3425.4,0.55]
[1718706299721,1.38676837,3426.0,3425.4,1.02344707]
[1718706300038,1.38676837,3426.2,3425.5,0.92737803]
[1718706300237,1.38676837,3426.2,3425.6,0.55]
[1718706300429,1.38676837,3426.2,3425.9,0.869]
[1718706300660,1.38676837,3426.2,3425.7,2.43347633]
[1718706300661,1.38676837,3426.7,3426.2,2.3751]
[1718706300868,1.38676837,3426.8,3426.3,0.38524708]
[1718706301025,1.38676837,3426.8,3426.4,0.55]
[1718706301663,1.38676837,3426.8,3426.3,0.55]
[1718706303334,7.4,3427.2,3426.4,0.37941]
[1718706303660,7.4,3427.2,3426.6,0.869]
[1718706303661,1.8924653,3427.2,3426.6,0.869]
[1718706303865,1.38741736,3427.2,3426.7,0.55]
[1718706304029,4.38741736,3427.3,3426.7,0.7906771]
[1718706304226,3.0,3427.3,3426.7,0.7906771]
[1718706304592,1.38741736,3427.4,3426.8,3.30246099]
[1718706304728,3.0,3427.8,3426.8,3.30246099]
[1718706304729,1.38741736,3427.5,3427.0,0.869]
[1718706305040,1.38741736,3427.5,3427.1,0.55]
[1718706305231,1.38741736,3427.6,3427.1,0.55]
[1718706305426,1.38741736,3427.6,3426.9,0.60835403]
[1718706305665,1.38741736,3427.6,3427.0,0.4144964]
[1718706305868,1.38741736,3427.7,3427.1,0.55]
[1718706306067,4.38741736,3427.8,3427.1,0.55]
[1718706306368,2.7614653,3428.0,3427.1,0.97085964]
[1718706306672,1.38741736,3428.4,3427.6,3.2441]
[1718706306871,1.38741736,3428.4,3427.7,0.55]
[1718706307086,2.25641736,3428.5,3427.7,0.55]
[1718706307229,0.869,3428.5,3427.7,0.55]
[1718706307567,1.38741736,3428.5,3427.7,0.55]
[1718706307764,5.3539,3428.7,3427.7,0.55]
[1718706307765,1.38741736,3428.3,3427.7,0.55]
[1718706308058,5.3539,3428.7,3427.7,0.55]
[1718706308059,1.38741736,3428.2,3427.7,0.55]
[1718706308266,1.38741736,3428.3,3427.7,0.55]
[1718706308423,1.38782253,3428.3,3427.7,0.55]
[1718706309300,1.38782253,3428.4,3427.7,0.55]
[1718706309564,2.12056004,3428.3,3427.7,0.55]
[1718706309760,5.12056004,3428.3,3427.7,0.55]
[1718706310062,3.0,3428.3,3427.7,0.55]
[1718706310269,4.89272416,3428.5,3427.7,0.55]
[1718706310560,5.12052094,3428.4,3427.7,0.55]
[1718706310739,2.12052094,3428.3,3427.7,0.55]
[1718706310940,3.0,3428.4,3427.7,0.55]
[1718706311156,2.12053123,3428.3,3427.7,0.55]
[1718706311349,3.0,3428.4,3427.7,0.55]
[1718706311551,2.12053913,3428.3,3427.7,0.55]
[1718706311768,3.0,3428.4,3427.7,0.55]
[1718706311970,2.12049505,3428.3,3427.7,0.55]
[1718706312131,6.10399068,3428.6,3427.7,0.55]
[1718706312330,2.12049661,3428.5,3427.7,0.55]
[1718706313044,3.50490163,3428.6,3427.7,0.55]
[1718706313248,3.0,3428.6,3427.8,2.4438]
[1718706313487,3.0,3428.6,3427.9,0.55]
[1718706318859,3.0,3428.6,3427.6,0.55]
[1718706319675,2.486,3428.2,3427.6,0.55]
[1718706320083,3.0,3428.3,3427.6,0.55]
[1718706321086,3.0,3428.3,3427.3,0.55]
[1718706321261,3.0,3428.3,3427.3,0.83667496]
[1718706322495,3.0,3428.3,3427.4,2.31674958]
[1718706322787,3.0,3428.3,3427.5,0.55]
[1718706323088,3.0,3428.3,3427.6,0.05834396]
[1718706323277,3.0,3428.3,3427.7,0.55]
[1718706323487,3.0,3428.3,3427.5,0.55]
[1718706324609,3.0,3428.3,3427.6,0.05834396]
[1718706324778,3.0,3428.3,3427.7,0.55]
[1718706330421,3.0,3428.3,3427.6,0.55]
[1718706332213,4.38702897,3428.3,3427.6,0.55]
[1718706332401,5.25602897,3428.3,3427.6,0.55]
[1718706332602,5.25602897,3428.3,3427.5,0.55]
[1718706332814,1.38702897,3428.2,3427.5,0.55]
[1718706333316,1.38702897,3428.0,3427.5,0.55]
[1718706334719,1.38702897,3427.9,3427.5,0.55]
[1718706334925,1.38702897,3427.8,3427.5,0.55]
[1718706335126,0.869,3428.1,3427.5,0.55]
[1718706335127,1.38702897,3427.7,3427.5,0.55]
[1718706335682,0.869,3428.1,3427.5,0.55]
[1718706335880,1.3872167,3427.7,3427.5,0.55]
[1718706336887,1.3872167,3427.8,3427.5,0.55]
[1718706338691,1.38784498,3427.8,3427.5,0.55]
[1718706339521,1.38785595,3427.8,3427.5,0.55]
[1718706345347,2.59912247,3427.8,3427.5,0.55]
[1718706345871,5.68257981,3428.3,3427.8,2.2583]
[1718706345872,1.38785595,3428.2,3427.8,2.2583]
[1718706346008,2.59912247,3428.4,3428.1,0.869]
[1718706346346,1.38785595,3428.5,3428.2,2.2583]
[1718706346505,1.38785595,3428.5,3428.3,0.55]